[Event "Chess Festival Groningen 2023 | A"]
[Site "Groningen, Netherlands"]
[Date "2023.12.24"]
[Round "4.8"]
[White "Nevednichy, Vladislav"]
[Black "Gomes, Mary Ann"]
[Result "0-1"]
[TimeControl "90min/40moves + 30min + 30sec/move"]
[WhiteElo "2452"]
[BlackElo "2332"]

1. e4 {[%clk 01:30:57]} {[%emt 00:00:02]} c5 {[%clk 01:30:26]} {[%emt
00:00:34]} 2. Nf3 {[%clk 01:31:22]} {[%emt 00:00:04]} e6 {[%clk 01:30:51]}
{[%emt 00:00:05]} 3. d4 {[%clk 01:31:03]} {[%emt 00:00:49]} cxd4 {[%clk
01:31:10]} {[%emt 00:00:11]} 4. Nxd4 {[%clk 01:31:31]} {[%emt 00:00:02]} a6
{[%clk 01:31:32]} {[%emt 00:00:08]} 5. Bd3 {[%clk 01:31:30]} {[%emt 00:00:30]}
Nf6 {[%clk 01:31:40]} {[%emt 00:00:22]} 6. Qe2 {[%clk 01:30:57]} {[%emt
00:01:03]} d6 {[%clk 01:31:44]} {[%emt 00:00:27]} 7. c4 {[%clk 01:31:12]}
{[%emt 00:00:15]} Qc7 {[%clk 01:31:53]} {[%emt 00:00:22]} 8. Nc3 {[%clk
01:31:31]} {[%emt 00:00:11]} g6 {[%clk 01:31:12]} {[%emt 00:01:11]} 9. O-O
{[%clk 01:31:47]} {[%emt 00:00:13]} Bg7 {[%clk 01:31:38]} {[%emt 00:00:04]} 10.
Nf3 {[%clk 01:31:18]} {[%emt 00:00:59]} O-O {[%clk 01:31:53]} {[%emt 00:00:14]}
11. h3 {[%clk 01:30:49]} {[%emt 00:01:00]} Nc6 {[%clk 01:32:04]} {[%emt
00:00:19]} 12. Bf4 {[%clk 01:31:01]} {[%emt 00:00:17]} Nd7 {[%clk 01:32:00]}
{[%emt 00:00:35]} 13. Rac1 {[%clk 01:30:48]} {[%emt 00:00:43]} Nce5 {[%clk
01:24:32]} {[%emt 00:07:57]} 14. Rfd1 {[%clk 01:30:05]} {[%emt 00:01:14]} b6
{[%clk 01:24:37]} {[%emt 00:00:25]} 15. b3 {[%clk 01:28:57]} {[%emt 00:01:38]}
Bb7 {[%clk 01:25:01]} {[%emt 00:00:06]} 16. Nh2 {[%clk 01:27:04]} {[%emt
00:02:23]} f5 {[%clk 01:20:58]} {[%emt 00:04:34]} 17. exf5 {[%clk 01:26:01]}
{[%emt 00:01:33]} gxf5 {[%clk 01:21:20]} {[%emt 00:00:07]} 18. Bb1 {[%clk
01:25:20]} {[%emt 00:01:11]} Rad8 {[%clk 01:17:48]} {[%emt 00:04:03]} 19. Bg5
{[%clk 01:14:30]} {[%emt 00:11:20]} Rde8 {[%clk 01:16:16]} {[%emt 00:02:03]} 20.
Qd2 {[%clk 01:13:03]} {[%emt 00:01:56]} Nf7 {[%clk 01:13:34]} {[%emt 00:03:12]}
21. Bf4 {[%clk 01:12:16]} {[%emt 00:01:17]} Nde5 {[%clk 01:09:39]} {[%emt
00:04:26]} 22. Ne2 {[%clk 01:09:20]} {[%emt 00:03:26]} Ng6 {[%clk 01:05:23]}
{[%emt 00:04:45]} 23. Be3 {[%clk 01:09:45]} {[%emt 00:00:05]} Nh4 {[%clk
00:57:30]} {[%emt 00:08:23]} 24. f3 {[%clk 01:08:42]} {[%emt 00:01:33]} Be5
{[%clk 00:53:09]} {[%emt 00:04:51]} 25. Bf4 {[%clk 01:05:58]} {[%emt 00:03:14]}
Kh8 {[%clk 00:50:56]} {[%emt 00:02:42]} 26. Kf2 {[%clk 00:58:15]} {[%emt
00:08:13]} Rg8 {[%clk 00:47:18]} {[%emt 00:04:08]} 27. Rg1 {[%clk 00:58:40]}
{[%emt 00:00:05]} Ng6 {[%clk 00:42:08]} {[%emt 00:05:40]} 28. Bxe5+ {[%clk
00:56:48]} {[%emt 00:02:22]} dxe5 {[%clk 00:42:15]} {[%emt 00:00:23]} 29. Qc3
{[%clk 00:51:45]} {[%emt 00:05:33]} Rg7 {[%clk 00:39:46]} {[%emt 00:02:58]} 30.
c5 {[%clk 00:46:21]} {[%emt 00:05:54]} Bd5 {[%clk 00:40:01]} {[%emt 00:00:15]}
31. cxb6 {[%clk 00:45:12]} {[%emt 00:01:39]} Qxb6+ {[%clk 00:40:25]} {[%emt
00:00:07]} 32. Qc5 {[%clk 00:42:34]} {[%emt 00:03:08]} Qd8 {[%clk 00:40:45]}
{[%emt 00:00:09]} 33. Rcd1 {[%clk 00:37:03]} {[%emt 00:06:02]} Nh4 {[%clk
00:26:05]} {[%emt 00:15:10]} 34. Kf1 {[%clk 00:24:13]} {[%emt 00:13:20]} Nxg2
{[%clk 00:19:17]} {[%emt 00:07:18]} 35. Rxg2 {[%clk 00:17:15]} {[%emt
00:07:28]} Rxg2 {[%clk 00:19:40]} {[%emt 00:00:07]} 36. Kxg2 {[%clk 00:17:31]}
{[%emt 00:00:15]} Bxf3+ {[%clk 00:20:05]} {[%emt 00:00:05]} 37. Nxf3 {[%clk
00:17:45]} {[%emt 00:00:16]} Qxd1 {[%clk 00:20:27]} {[%emt 00:00:08]} 38. Qc2
{[%clk 00:07:04]} {[%emt 00:11:11]} Rg8+ {[%clk 00:20:48]} {[%emt 00:00:08]} 39.
Kf2 {[%clk 00:07:07]} {[%emt 00:00:27]} Qh1 {[%clk 00:20:58]} {[%emt 00:00:20]}
40. Nfg1 {[%clk 00:06:13]} {[%emt 00:01:24]} Qh2+ {[%clk 00:15:05]} {[%emt
00:06:24]} 41. Kf1 {[%clk 00:06:38]} {[%emt 00:00:05]} e4 {[%clk 00:15:23]}
{[%emt 00:00:12]} 42. Qc6 {[%clk 00:01:34]} {[%emt 00:05:33]} Ng5 {[%clk
00:12:10]} {[%emt 00:03:44]} 43. b4 {[%clk 00:14:43]} {[%emt 00:17:21]} h6
{[%clk 00:38:58]} {[%emt 00:03:42]} 44. Ke1 {[%clk 00:05:40]} {[%emt 00:09:33]}
Qh1 {[%clk 00:34:44]} {[%emt 00:04:44]} 45. Kd1 {[%clk 00:02:39]} {[%emt
00:03:31]} Nf3 {[%clk 00:34:07]} {[%emt 00:01:06]} 46. Qxe6 {[%clk 00:02:06]}
{[%emt 00:01:03]} Rxg1+ {[%clk 00:33:41]} {[%emt 00:00:56]} 47. Kc2 {[%clk
00:02:34]} {[%emt 00:00:02]} Qxh3 {[%clk 00:31:22]} {[%emt 00:02:49]} 48. Qxa6
{[%clk 00:01:29]} {[%emt 00:01:36]} Rg2 {[%clk 00:29:13]} {[%emt 00:02:38]} 49.
Qc8+ {[%clk 00:00:37]} {[%emt 00:01:23]} Kh7 {[%clk 00:29:25]} {[%emt
00:00:18]} 50. Qc7+ {[%clk 00:00:53]} {[%emt 00:00:14]} Kg6 {[%clk 00:28:31]}
{[%emt 00:01:24]} 51. Qc6+ {[%clk 00:01:10]} {[%emt 00:00:14]} Kg5 {[%clk
00:28:49]} {[%emt 00:00:11]} 0-1

[Event "Chess Festival Groningen 2023 | A"]
[Site "Groningen, Netherlands"]
[Date "2023.12.24"]
[Round "4.9"]
[White "De Jong, Migchiel"]
[Black "Bulmaga, Irina"]
[Result "0-1"]
[TimeControl "90min/40moves + 30min + 30sec/move"]
[WhiteElo "2301"]
[BlackElo "2439"]

1. Nf3 {[%clk 01:30:48]} {[%emt 00:00:10]} Nf6 {[%clk 01:30:51]} {[%emt
00:00:10]} 2. g3 {[%clk 01:30:40]} {[%emt 00:00:39]} d5 {[%clk 01:31:11]}
{[%emt 00:00:10]} 3. Bg2 {[%clk 01:30:54]} {[%emt 00:00:15]} e6 {[%clk
01:31:32]} {[%emt 00:00:09]} 4. O-O {[%clk 01:30:51]} {[%emt 00:00:33]} Be7
{[%clk 01:31:39]} {[%emt 00:00:23]} 5. c4 {[%clk 01:30:17]} {[%emt 00:01:04]}
O-O {[%clk 01:31:51]} {[%emt 00:00:18]} 6. b3 {[%clk 01:27:41]} {[%emt
00:03:06]} b6 {[%clk 01:31:50]} {[%emt 00:00:32]} 7. Bb2 {[%clk 01:27:10]}
{[%emt 00:01:00]} Bb7 {[%clk 01:32:11]} {[%emt 00:00:09]} 8. cxd5 {[%clk
01:24:19]} {[%emt 00:03:21]} exd5 {[%clk 01:26:59]} {[%emt 00:05:42]} 9. d4
{[%clk 01:23:22]} {[%emt 00:01:27]} Nbd7 {[%clk 01:24:20]} {[%emt 00:03:09]} 10.
Nc3 {[%clk 01:22:58]} {[%emt 00:00:53]} Re8 {[%clk 01:16:18]} {[%emt 00:08:33]}
11. Ne5 {[%clk 01:17:56]} {[%emt 00:05:32]} Bf8 {[%clk 01:13:15]} {[%emt
00:03:34]} 12. Nd3 {[%clk 01:11:04]} {[%emt 00:07:20]} Ne4 {[%clk 01:09:28]}
{[%emt 00:04:18]} 13. Rc1 {[%clk 01:10:32]} {[%emt 00:01:01]} Nxc3 {[%clk
01:05:59]} {[%emt 00:04:00]} 14. Bxc3 {[%clk 01:10:27]} {[%emt 00:00:34]} a5
{[%clk 01:03:52]} {[%emt 00:02:38]} 15. Bd2 {[%clk 01:07:09]} {[%emt 00:03:48]}
Bd6 {[%clk 00:48:22]} {[%emt 00:16:00]} 16. Bf4 {[%clk 01:06:13]} {[%emt
00:01:26]} Qe7 {[%clk 00:48:14]} {[%emt 00:00:38]} 17. Bxd6 {[%clk 01:05:16]}
{[%emt 00:01:26]} Qxd6 {[%clk 00:48:35]} {[%emt 00:00:09]} 18. Qc2 {[%clk
01:05:04]} {[%emt 00:00:43]} c6 {[%clk 00:46:57]} {[%emt 00:02:09]} 19. Rfd1
{[%clk 01:03:46]} {[%emt 00:01:47]} Re7 {[%clk 00:45:04]} {[%emt 00:02:23]} 20.
e3 {[%clk 01:03:08]} {[%emt 00:01:08]} Rae8 {[%clk 00:42:50]} {[%emt 00:02:44]}
21. Qb2 {[%clk 01:00:17]} {[%emt 00:03:22]} Ba6 {[%clk 00:41:37]} {[%emt
00:01:42]} 22. Nf4 {[%clk 00:59:59]} {[%emt 00:00:46]} Nf6 {[%clk 00:40:22]}
{[%emt 00:01:46]} 23. Ne2 {[%clk 00:58:09]} {[%emt 00:02:20]} Bc8 {[%clk
00:34:58]} {[%emt 00:05:54]} 24. Nc3 {[%clk 00:56:25]} {[%emt 00:02:14]} Bf5
{[%clk 00:33:57]} {[%emt 00:01:31]} 25. a3 {[%clk 00:55:36]} {[%emt 00:01:19]}
h5 {[%clk 00:25:18]} {[%emt 00:09:09]} 26. b4 {[%clk 00:53:48]} {[%emt
00:02:18]} b5 {[%clk 00:21:56]} {[%emt 00:03:52]} 27. bxa5 {[%clk 00:53:51]}
{[%emt 00:00:27]} h4 {[%clk 00:21:57]} {[%emt 00:00:28]} 28. Qb4 {[%clk
00:53:43]} {[%emt 00:00:38]} Qe6 {[%clk 00:21:01]} {[%emt 00:01:26]} 29. a4
{[%clk 00:46:23]} {[%emt 00:07:52]} hxg3 {[%clk 00:21:17]} {[%emt 00:00:14]} 30.
hxg3 {[%clk 00:46:46]} {[%emt 00:00:06]} Ng4 {[%clk 00:17:52]} {[%emt
00:03:54]} 31. Rd2 {[%clk 00:40:37]} {[%emt 00:06:39]} Qh6 {[%clk 00:17:13]}
{[%emt 00:01:09]} 32. Nd1 {[%clk 00:38:43]} {[%emt 00:02:25]} bxa4 {[%clk
00:13:36]} {[%emt 00:04:08]} 33. Qxa4 {[%clk 00:31:41]} {[%emt 00:07:32]} Be4
{[%clk 00:10:17]} {[%emt 00:03:48]} 34. Bxe4 {[%clk 00:29:41]} {[%emt
00:02:30]} Qh2+ {[%clk 00:10:46]} {[%emt 00:00:02]} 35. Kf1 {[%clk 00:30:01]}
{[%emt 00:00:11]} Rxe4 {[%clk 00:09:26]} {[%emt 00:01:49]} 36. Qxc6 {[%clk
00:28:38]} {[%emt 00:01:52]} Qh1+ {[%clk 00:07:15]} {[%emt 00:02:41]} 37. Ke2
{[%clk 00:29:02]} {[%emt 00:00:06]} Nxf2 {[%clk 00:07:19]} {[%emt 00:00:27]} 38.
Qxe8+ {[%clk 00:22:50]} {[%emt 00:06:42]} Rxe8 {[%clk 00:07:46]} {[%emt
00:00:02]} 39. Kxf2 {[%clk 00:23:11]} {[%emt 00:00:09]} Qh2+ {[%clk 00:06:17]}
{[%emt 00:01:58]} 40. Ke1 {[%clk 00:23:29]} {[%emt 00:00:13]} Qxg3+ {[%clk
00:06:37]} {[%emt 00:00:11]} 41. Ke2 {[%clk 00:23:11]} {[%emt 00:00:47]} f5
{[%clk 00:01:16]} {[%emt 00:05:51]} 0-1

[Event "Chess Festival Groningen 2023 | A"]
[Site "Groningen, Netherlands"]
[Date "2023.12.24"]
[Round "4.10"]
[White "Lahaye, Rick"]
[Black "Palchuk, Andrii"]
[Result "1/2-1/2"]
[TimeControl "90min/40moves + 30min + 30sec/move"]
[WhiteElo "2439"]
[BlackElo "2328"]

1. d4 {[%clk 01:30:30]} {[%emt 00:49:01]} Nf6 {[%clk 01:22:03]} {[%emt
00:08:58]} 2. Nf3 {[%clk 01:29:05]} {[%emt 00:01:56]} d5 {[%clk 01:21:27]}
{[%emt 00:01:06]} 3. Bf4 {[%clk 01:28:58]} {[%emt 00:00:37]} c5 {[%clk
01:21:27]} {[%emt 00:00:30]} 4. dxc5 {[%clk 01:25:55]} {[%emt 00:03:34]} Qa5+
{[%clk 01:10:01]} {[%emt 00:11:56]} 5. Nbd2 {[%clk 01:12:51]} {[%emt 00:13:34]}
Nbd7 {[%clk 00:59:31]} {[%emt 00:10:59]} 6. a3 {[%clk 01:09:14]} {[%emt
00:04:09]} Qxc5 {[%clk 00:59:49]} {[%emt 00:00:12]} 7. e3 {[%clk 01:09:34]}
{[%emt 00:00:10]} Qb6 {[%clk 00:42:28]} {[%emt 00:17:50]} 8. b4 {[%clk
01:00:29]} {[%emt 00:09:35]} Nh5 {[%clk 00:42:05]} {[%emt 00:00:53]} 9. Be5
{[%clk 01:00:54]} {[%emt 00:00:06]} Nxe5 {[%clk 00:38:22]} {[%emt 00:04:13]} 10.
Nxe5 {[%clk 01:01:19]} {[%emt 00:00:05]} g6 {[%clk 00:38:43]} {[%emt 00:00:08]}
11. Ndf3 {[%clk 01:01:03]} {[%emt 00:00:46]} Bg7 {[%clk 00:35:22]} {[%emt
00:03:51]} 12. c4 {[%clk 00:47:16]} {[%emt 00:14:17]} O-O {[%clk 00:27:48]}
{[%emt 00:08:03]} 13. Rc1 {[%clk 00:43:20]} {[%emt 00:04:27]} Rd8 {[%clk
00:23:51]} {[%emt 00:04:26]} 14. cxd5 {[%clk 00:31:44]} {[%emt 00:12:06]} Qd6
{[%clk 00:21:02]} {[%emt 00:03:19]} 15. Qd4 {[%clk 00:32:09]} {[%emt 00:00:05]}
Qxd5 {[%clk 00:20:19]} {[%emt 00:01:12]} 16. Bc4 {[%clk 00:31:46]} {[%emt
00:00:53]} Qxd4 {[%clk 00:20:44]} {[%emt 00:00:05]} 17. Bxf7+ {[%clk 00:30:08]}
{[%emt 00:02:08]} Kf8 {[%clk 00:21:01]} {[%emt 00:00:12]} 18. exd4 {[%clk
00:30:11]} {[%emt 00:00:28]} Bxe5 {[%clk 00:17:29]} {[%emt 00:04:02]} 19. Nxe5
{[%clk 00:30:35]} {[%emt 00:00:06]} Rxd4 {[%clk 00:17:53]} {[%emt 00:00:06]} 20.
f3 {[%clk 00:29:55]} {[%emt 00:01:10]} Nf4 {[%clk 00:15:44]} {[%emt 00:02:38]}
21. Kf2 {[%clk 00:27:37]} {[%emt 00:02:48]} Bf5 {[%clk 00:08:37]} {[%emt
00:07:37]} 22. g4 {[%clk 00:23:47]} {[%emt 00:04:21]} Be6 {[%clk 00:08:24]}
{[%emt 00:00:43]} 23. Bxe6 {[%clk 00:20:46]} {[%emt 00:03:31]} Nxe6 {[%clk
00:08:43]} {[%emt 00:00:11]} 24. Rhe1 {[%clk 00:17:18]} {[%emt 00:03:59]} Nf4
{[%clk 00:04:43]} {[%emt 00:04:30]} 25. Red1 {[%clk 00:17:41]} {[%emt
00:00:07]} Rxd1 {[%clk 00:04:58]} {[%emt 00:00:15]} 26. Rxd1 {[%emt 00:00:23]}
Rc8 {[%clk 00:05:05]} 27. Rd7 {[%clk 00:10:10]} {[%emt 00:08:30]} Rc3 {[%clk
00:03:30]} {[%emt 00:02:05]} 28. a4 {[%clk 00:09:45]} {[%emt 00:00:55]} a5
{[%clk 00:01:57]} {[%emt 00:02:04]} 29. Rxb7 {[%clk 00:07:00]} {[%emt
00:03:15]} axb4 {[%clk 00:02:03]} {[%emt 00:00:23]} 30. Rb8+ {[%clk 00:04:14]}
{[%emt 00:03:16]} Kg7 {[%clk 00:02:28]} {[%emt 00:00:05]} 31. Rxb4 {[%clk
00:04:39]} {[%emt 00:00:04]} Rc2+ {[%clk 00:02:51]} {[%emt 00:00:08]} 32. Kf1
{[%clk 00:01:35]} {[%emt 00:03:34]} Rc1+ {[%clk 00:03:15]} {[%emt 00:00:06]} 33.
Kf2 {[%clk 00:02:03]} {[%emt 00:00:02]} Rc2+ {[%clk 00:03:41]} {[%emt
00:00:04]} 34. Kf1 {[%clk 00:02:30]} {[%emt 00:00:03]} Rc1+ {[%clk 00:04:08]}
{[%emt 00:00:04]} 1/2-1/2

[Event "Chess Festival Groningen 2023 | A"]
[Site "Groningen, Netherlands"]
[Date "2023.12.24"]
[Round "4.11"]
[White "Panda, Sambit"]
[Black "Kumar, Prajit Sai"]
[Result "1-0"]
[TimeControl "90min/40moves + 30min + 30sec/move"]
[WhiteFideId "25091794"]
[WhiteElo "2404"]
[BlackElo "2172"]

1. d4 {[%clk 01:30:44]} {[%emt 00:00:15]} d5 {[%clk 01:30:32]} {[%emt
00:00:29]} 2. c4 {[%clk 01:31:08]} {[%emt 00:00:06]} e6 {[%clk 01:30:56]}
{[%emt 00:00:06]} 3. Nc3 {[%clk 01:30:44]} {[%emt 00:00:54]} c5 {[%clk
01:29:37]} {[%emt 00:01:50]} 4. cxd5 {[%clk 01:26:04]} {[%emt 00:05:10]} exd5
{[%clk 01:29:56]} {[%emt 00:00:11]} 5. Nf3 {[%clk 01:26:27]} {[%emt 00:00:07]}
Nc6 {[%clk 01:29:08]} {[%emt 00:01:17]} 6. Bg5 {[%clk 01:21:45]} {[%emt
00:05:12]} Be7 {[%clk 01:21:42]} {[%emt 00:07:55]} 7. Bxe7 {[%clk 01:17:28]}
{[%emt 00:04:48]} Ngxe7 {[%clk 01:21:59]} {[%emt 00:00:13]} 8. dxc5 {[%clk
01:13:01]} {[%emt 00:04:57]} Qa5 {[%clk 01:20:19]} {[%emt 00:02:10]} 9. e3
{[%clk 01:13:06]} {[%emt 00:00:25]} Qxc5 {[%clk 01:20:07]} {[%emt 00:00:41]} 10.
Be2 {[%clk 01:12:16]} {[%emt 00:01:21]} O-O {[%clk 01:16:34]} {[%emt 00:04:03]}
11. O-O {[%clk 01:11:01]} {[%emt 00:01:45]} Rd8 {[%clk 01:09:14]} {[%emt
00:07:49]} 12. Rc1 {[%clk 01:07:09]} {[%emt 00:04:23]} Bg4 {[%clk 01:03:01]}
{[%emt 00:06:43]} 13. Na4 {[%clk 00:47:17]} {[%emt 00:20:22]} Qd6 {[%clk
00:59:22]} {[%emt 00:04:09]} 14. Nc5 {[%clk 00:46:50]} {[%emt 00:00:57]} Rab8
{[%clk 00:54:51]} {[%emt 00:05:00]} 15. Qa4 {[%clk 00:44:32]} {[%emt 00:02:48]}
Ne5 {[%emt 00:07:16]} 16. Rfd1 {[%clk 00:34:38]} {[%emt 00:10:07]} Bxf3 {[%clk
00:41:20]} {[%emt 00:07:32]} 17. gxf3 {[%clk 00:34:18]} {[%emt 00:00:50]} N7c6
{[%clk 00:37:42]} {[%emt 00:04:07]} 18. Kh1 {[%clk 00:20:34]} {[%emt 00:14:14]}
Qe7 {[%clk 00:25:49]} {[%emt 00:12:23]} 19. f4 {[%clk 00:15:34]} {[%emt
00:05:30]} Nd7 {[%clk 00:25:20]} {[%emt 00:01:00]} 20. Rxd5 {[%clk 00:09:55]}
{[%emt 00:06:09]} Nxc5 {[%clk 00:24:19]} {[%emt 00:01:31]} 21. Rcxc5 {[%clk
00:10:05]} {[%emt 00:00:20]} Qh4 {[%clk 00:21:23]} {[%emt 00:03:24]} 22. Kg2
{[%clk 00:08:39]} {[%emt 00:01:56]} Qf6 {[%clk 00:19:50]} {[%emt 00:02:04]} 23.
Qb3 {[%clk 00:05:21]} {[%emt 00:03:49]} h6 {[%clk 00:18:48]} {[%emt 00:01:32]}
24. Rf5 {[%clk 00:03:01]} {[%emt 00:02:50]} Qg6+ {[%clk 00:18:00]} {[%emt
00:01:18]} 25. Kf1 {[%clk 00:03:19]} {[%emt 00:00:11]} Rf8 {[%clk 00:13:31]}
{[%emt 00:04:59]} 26. Bh5 {[%clk 00:03:34]} {[%emt 00:00:15]} Qd6 {[%clk
00:13:57]} {[%emt 00:00:04]} 27. Rxf7 {[%clk 00:02:57]} {[%emt 00:01:08]} Kh8
{[%clk 00:13:41]} {[%emt 00:00:46]} 28. Qd5 {[%clk 00:02:19]} {[%emt 00:01:08]}
Qxd5 {[%clk 00:13:22]} {[%emt 00:00:49]} 29. Rxd5 {[%clk 00:02:43]} {[%emt
00:00:06]} Rxf7 {[%clk 00:13:48]} {[%emt 00:00:04]} 30. Bxf7 {[%clk 00:03:10]}
{[%emt 00:00:03]} Nb4 {[%clk 00:13:00]} {[%emt 00:01:17]} 31. Rd7 {[%clk
00:03:34]} {[%emt 00:00:06]} g5 {[%clk 00:13:23]} {[%emt 00:00:07]} 32. f5
{[%clk 00:03:15]} {[%emt 00:00:47]} Kg7 {[%clk 00:13:41]} {[%emt 00:00:14]} 33.
Be6+ {[%clk 00:01:51]} {[%emt 00:01:54]} Kf6 {[%clk 00:14:01]} {[%emt
00:00:10]} 34. f4 {[%clk 00:02:13]} {[%emt 00:00:08]} gxf4 {[%clk 00:14:21]}
{[%emt 00:00:10]} 35. exf4 {[%clk 00:02:40]} {[%emt 00:00:04]} Rf8 {[%clk
00:14:39]} {[%emt 00:00:11]} 36. Ke2 {[%clk 00:01:16]} {[%emt 00:01:53]} Nc6
{[%clk 00:15:08]} {[%emt 00:00:03]} 37. Rxb7 {[%clk 00:00:58]} {[%emt
00:00:48]} Nd4+ {[%clk 00:15:27]} {[%emt 00:00:11]} 38. Ke3 {[%clk 00:01:22]}
{[%emt 00:00:05]} Nxf5+ {[%clk 00:15:06]} {[%emt 00:00:52]} 39. Bxf5 {[%clk
00:01:45]} {[%emt 00:00:07]} Kxf5 {[%clk 00:15:28]} {[%emt 00:00:08]} 40. Rxa7
{[%clk 00:02:13]} {[%emt 00:00:03]} Rb8 {[%clk 00:15:51]} {[%emt 00:00:07]} 41.
b3 {[%clk 00:02:31]} {[%emt 00:00:13]} Rc8 {[%clk 00:16:09]} {[%emt 00:00:12]}
42. Rf7+ {[%clk 00:01:58]} {[%emt 00:01:03]} Kg4 {[%clk 00:16:35]} {[%emt
00:00:04]} 43. Rg7+ {[%clk 00:02:24]} {[%emt 00:00:04]} Kf5 {[%clk 00:17:00]}
{[%emt 00:00:05]} 44. Kd3 {[%clk 00:25:28]} {[%emt 00:07:26]} Kxf4 {[%clk
00:47:07]} {[%emt 00:00:23]} 45. a4 {[%clk 00:25:54]} {[%emt 00:00:04]} Ra8
{[%clk 00:46:57]} {[%emt 00:00:39]} 46. Rg6 {[%clk 00:25:46]} {[%emt 00:00:38]}
h5 {[%clk 00:47:11]} {[%emt 00:00:16]} 47. h4 {[%clk 00:26:11]} {[%emt
00:00:05]} Kf3 {[%clk 00:45:03]} {[%emt 00:02:38]} 48. Rg5 {[%clk 00:26:34]}
{[%emt 00:00:07]} 1-0